fUST/lending_fUST_20250601
["ID","MTS","AMOUNT","RATE_DAILY","PERIOD"]
[363478160,1748734244058,-1603.8,0.00018356,2]
[363478161,1748734244067,-1679.41,0.00018356,2]
[363478162,1748734244078,-617.62,0.00018356,2]
[363478163,1748734244087,-454.8,0.00018356,2]
[363478164,1748734244097,-952.64,0.00018356,2]
[363478165,1748734244107,-430.0,0.00018356,2]
[363478166,1748734244118,-1359.86,0.00018356,2]
[363478167,1748734244128,-647.08,0.00018356,2]
[363478168,1748734244139,-430.0,0.00018356,2]
[363478169,1748734244151,-659.4,0.00018356,2]
[363478171,1748734244160,-151.0,0.00018383,2]
[363478173,1748734244170,-937.27698785,0.00018512,2]
[363478177,1748734244299,-2952.7,0.00018547,2]
[363478178,1748734244310,-1689.40110822,0.00018555,2]
[363478179,1748734244320,-430.0,0.00018629,2]
[363478180,1748734244329,-430.0,0.0001863,2]
[363478181,1748734244339,-430.0,0.0001863,2]
[363478182,1748734244351,-430.0,0.0001863,2]
[363478183,1748734244364,-430.0,0.0001863,2]
[363478184,1748734244373,-430.0,0.0001863,2]
[363478185,1748734244383,-1082.65,0.0001863,2]
[363478186,1748734244393,-430.0,0.0001863,2]
[363478187,1748734244404,-1847.75,0.0001863,2]
[363478188,1748734244414,-430.0,0.0001863,2]
[363478189,1748734244424,-1758.73,0.0001863,2]
[363478190,1748734244435,-430.0,0.0001863,2]
[363478191,1748734244445,-1469.77,0.0001863,2]
[363478192,1748734244455,-843.86,0.0001863,2]
[363478193,1748734244464,-775.51,0.0001863,2]
[363478194,1748734244474,-430.0,0.0001863,2]
[363478195,1748734244484,-430.0,0.0001863,2]
[363478196,1748734244494,-818.39,0.0001863,2]
[363478197,1748734244504,-769.5,0.0001863,2]
[363478198,1748734244514,-1603.8,0.0001863,2]
[363478199,1748734244524,-1679.41,0.0001863,2]
[363478200,1748734244534,-617.62,0.0001863,2]
[363478201,1748734244544,-454.8,0.0001863,2]
[363478202,1748734244553,-952.64,0.0001863,2]
[363478203,1748734244563,-430.0,0.0001863,2]
[363478204,1748734244573,-1359.86,0.0001863,2]
[363478205,1748734244583,-647.08,0.0001863,2]
[363478206,1748734244593,-430.0,0.0001863,2]
[363478207,1748734244604,-659.4,0.0001863,2]
[363478208,1748734244614,-500.5084942,0.00018761,2]
[363478209,1748734244623,-1689.40110822,0.00018831,2]
[363478210,1748734244633,-1048.2138631,0.000189,2]
[363478211,1748734244644,-430.0,0.00018903,2]
[363478212,1748734244653,-151.0,0.00018904,2]
[363478213,1748734244663,-151.0,0.00018904,2]
[363478214,1748734244673,-430.0,0.00018904,2]
[363478215,1748734244682,-430.0,0.00018904,2]
[363478216,1748734244692,-430.0,0.00018904,2]
[363478217,1748734244702,-430.0,0.00018904,2]
[363478218,1748734244714,-430.0,0.00018904,2]
[363478219,1748734244726,-1082.65,0.00018904,2]
[363478220,1748734244736,-430.0,0.00018904,2]
[363478221,1748734244748,-1847.75,0.00018904,2]
[363478222,1748734244759,-430.0,0.00018904,2]
[363478223,1748734244768,-1758.73,0.00018904,2]
[363478224,1748734244778,-430.0,0.00018904,2]
[363478225,1748734244790,-1469.77,0.00018904,2]
[363478226,1748734244801,-843.86,0.00018904,2]
[363478227,1748734244812,-775.51,0.00018904,2]
[363478228,1748734244823,-430.0,0.00018904,2]
[363478229,1748734244832,-430.0,0.00018904,2]
[363478230,1748734244842,-818.39,0.00018904,2]
[363478231,1748734244852,-769.5,0.00018904,2]
[363478232,1748734244862,-1603.8,0.00018904,2]
[363478233,1748734244872,-1679.41,0.00018904,2]
[363478234,1748734244882,-617.62,0.00018904,2]
[363478235,1748734244892,-454.8,0.00018904,2]
[363478236,1748734244903,-952.64,0.00018904,2]
[363478237,1748734244913,-430.0,0.00018904,2]
[363478238,1748734244923,-1359.86,0.00018904,2]
[363478239,1748734244934,-647.08,0.00018904,2]
[363478240,1748734244944,-518.78618381,0.00018904,2]
[363478241,1748734244954,-659.4,0.00018904,2]
[363478242,1748734244964,-186.592002,0.00019177,2]
[363478243,1748734244973,-186.592002,0.00019177,2]
[363478244,1748734244983,-151.0,0.00019177,2]
[363478245,1748734244993,-430.0,0.00019177,2]
[363478246,1748734245002,-151.0,0.00019178,2]
[363478247,1748734245012,-500.0,0.00019178,2]
[363478248,1748734245022,-342.20227073,0.00019178,2]
[363478249,1748734245032,-500.0,0.00019178,2]
[363478250,1748734245041,-500.0,0.00019178,2]
[363478251,1748734245051,-500.0,0.00019178,2]
[363478253,1748734245061,-500.0,0.00019178,2]
[363478255,1748734245071,-500.0,0.00019178,2]
[363478257,1748734245080,-300.0,0.00019178,2]
[363478259,1748734245090,-430.0,0.00019178,2]
[363478261,1748734245100,-430.0,0.00019178,2]
[363478263,1748734245110,-430.0,0.00019178,2]
[363478265,1748734245119,-430.0,0.00019178,2]
[363478267,1748734245129,-184.63,0.00019178,2]
[363478269,1748734245139,-1082.65,0.00019178,2]
[363478271,1748734245148,-430.0,0.00019178,2]
[363478273,1748734245158,-1847.75,0.00019178,2]
[363478275,1748734245168,-430.0,0.00019178,2]
[363478277,1748734245178,-1758.73,0.00019178,2]
[363478279,1748734245188,-414.1,0.00019178,2]
[363478282,1748734245197,-430.0,0.00019178,2]
[363478284,1748734245207,-430.0,0.00019178,2]
[363478286,1748734245218,-430.0,0.00019178,2]
[363478288,1748734245228,-430.0,0.00019178,2]
[363478290,1748734245238,-430.0,0.00019178,2]
[363478292,1748734245247,-430.0,0.00019178,2]
[363478294,1748734245257,-430.0,0.00019178,2]
[363478296,1748734245267,-430.0,0.00019178,2]
[363478298,1748734245276,-430.0,0.00019178,2]
[363478300,1748734245286,-430.0,0.00019178,2]
[363478302,1748734245296,-430.0,0.00019178,2]
[363478304,1748734245305,-1469.77,0.00019178,2]
[363478306,1748734245315,-843.86,0.00019178,2]
[363478308,1748734245324,-775.51,0.00019178,2]
[363478310,1748734245334,-430.0,0.00019178,2]
[363478312,1748734245344,-430.0,0.00019178,2]
[363478314,1748734245353,-818.39,0.00019178,2]
[363478316,1748734245363,-769.5,0.00019178,2]
[363478318,1748734245373,-1603.8,0.00019178,2]
[363478320,1748734245383,-1679.41,0.00019178,2]
[363478322,1748734245392,-617.62,0.00019178,2]
[363478324,1748734245401,-454.8,0.00019178,2]
[363478326,1748734245411,-952.64,0.00019178,2]
[363478328,1748734245421,-430.0,0.00019178,2]
[363478330,1748734245431,-1359.86,0.00019178,2]
[363478332,1748734245441,-647.08,0.00019178,2]
[363478334,1748734245451,-659.4,0.00019178,2]
[363478336,1748734245461,-159.855228,0.00019178,2]
[363478338,1748734245471,-4429.05,0.0001939,2]
[363478340,1748734245481,-151.0,0.00019451,2]
[363478342,1748734245491,-430.0,0.00019451,2]
[363478344,1748734245500,-430.0,0.00019452,2]
[363478346,1748734245510,-430.0,0.00019452,2]
[363478348,1748734245520,-430.0,0.00019452,2]
[363478350,1748734245529,-430.0,0.00019452,2]
[363478352,1748734245539,-1082.65,0.00019452,2]
[363478354,1748734245550,-430.0,0.00019452,2]
[363478356,1748734245559,-1847.75,0.00019452,2]
[363478359,1748734245569,-430.0,0.00019452,2]
[363478361,1748734245578,-1758.73,0.00019452,2]
[363478363,1748734245588,-430.0,0.00019452,2]
[363478364,1748734245598,-1469.77,0.00019452,2]
[363478367,1748734245608,-843.86,0.00019452,2]
[363478369,1748734245618,-775.51,0.00019452,2]
[363478371,1748734245628,-430.0,0.00019452,2]
[363478373,1748734245637,-430.0,0.00019452,2]
[363478375,1748734245648,-818.39,0.00019452,2]
[363478377,1748734245657,-769.5,0.00019452,2]
[363478379,1748734245667,-1603.8,0.00019452,2]
[363478381,1748734245677,-1679.41,0.00019452,2]
[363478383,1748734245686,-617.62,0.00019452,2]
[363478385,1748734245695,-454.8,0.00019452,2]
[363478387,1748734245707,-952.64,0.00019452,2]
[363478389,1748734245716,-430.0,0.00019452,2]
[363478391,1748734245726,-1359.86,0.00019452,2]
[363478393,1748734245736,-647.08,0.00019452,2]
[363478395,1748734245747,-659.4,0.00019452,2]
[363478397,1748734245755,-937.27698785,0.00019599,2]
[363478399,1748734245764,-587.0,0.0001963,2]
[363478401,1748734245774,-177.704,0.00019709,2]
[363478403,1748734245783,-614.937,0.00019709,2]
[363478405,1748734245794,-151.0,0.00019725,2]
[363478407,1748734245805,-151.0,0.00019725,2]
[363478408,1748734245815,-430.0,0.00019725,2]
[363478410,1748734245824,-186.592002,0.00019726,2]
[363478413,1748734245835,-186.592002,0.00019726,2]
[363478414,1748734245845,-151.0,0.00019726,2]
[363478416,1748734245854,-430.0,0.00019726,2]
[363478418,1748734245863,-430.0,0.00019726,2]
[363478420,1748734245873,-430.0,0.00019726,2]
[363478422,1748734245883,-430.0,0.00019726,2]
[363478424,1748734245893,-1082.65,0.00019726,2]
[363478427,1748734245904,-430.0,0.00019726,2]
[363478429,1748734245914,-1847.75,0.00019726,2]
[363478431,1748734245923,-430.0,0.00019726,2]
[363478433,1748734245933,-1758.73,0.00019726,2]
[363478435,1748734245942,-430.0,0.00019726,2]
[363478437,1748734245952,-1469.77,0.00019726,2]
[363478439,1748734245963,-843.86,0.00019726,2]
[363478441,1748734245972,-775.51,0.00019726,2]
[363478443,1748734245981,-153.91,0.00019726,2]
[363478445,1748734245991,-430.0,0.00019726,2]
[363478447,1748734246000,-818.39,0.00019726,2]
[363478449,1748734246009,-769.5,0.00019726,2]
[363478451,1748734246019,-1603.8,0.00019726,2]
[363478453,1748734246030,-1679.41,0.00019726,2]
[363478455,1748734246040,-617.62,0.00019726,2]
[363478457,1748734246049,-454.8,0.00019726,2]
[363478459,1748734246058,-952.64,0.00019726,2]
[363478461,1748734246068,-430.0,0.00019726,2]
[363478463,1748734246077,-1359.86,0.00019726,2]
[363478465,1748734246086,-647.08,0.00019726,2]
[363478467,1748734246096,-659.4,0.00019726,2]
[363478469,1748734246105,-151.0,0.00019767,2]
[363478471,1748734246114,-500.0,0.00019964,2]
[363478473,1748734246124,-430.0,0.00019999,2]
[363478474,1748734246133,-430.0,0.0002,2]
[363478476,1748734246143,-430.0,0.0002,2]
[363478478,1748734246152,-430.0,0.0002,2]
[363478480,1748734246162,-430.0,0.0002,2]
[363478483,1748734246172,-1082.65,0.0002,2]
[363478484,1748734246183,-430.0,0.0002,2]
[363478486,1748734246193,-1847.75,0.0002,2]
[363478488,1748734246203,-430.0,0.0002,2]
[363478490,1748734246212,-1758.73,0.0002,2]
[363478492,1748734246222,-430.0,0.0002,2]
[363478494,1748734246231,-1469.77,0.0002,2]
[363478496,1748734246241,-843.86,0.0002,2]
[363478498,1748734246253,-775.51,0.0002,2]
[363478500,1748734246263,-430.0,0.0002,2]
[363478502,1748734246272,-818.39,0.0002,2]
[363478505,1748734246282,-769.5,0.0002,2]
[363478507,1748734246292,-1603.8,0.0002,2]
[363478509,1748734246301,-1679.41,0.0002,2]
[363478511,1748734246311,-617.62,0.0002,2]
[363478513,1748734246320,-454.8,0.0002,2]
[363478515,1748734246330,-952.64,0.0002,2]
[363478516,1748734246340,-430.0,0.0002,2]
[363478518,1748734246350,-1359.86,0.0002,2]
[363478521,1748734246360,-647.08,0.0002,2]
[363478522,1748734246370,-659.4,0.0002,2]
[363478525,1748734246379,-500.5084942,0.00020089,2]
[363478527,1748734246389,-565.705019,0.00020187,2]
[363478529,1748734246399,-5905.4,0.00020233,2]
[363478531,1748734246409,-151.0,0.00020273,2]
[363478533,1748734246418,-256.3496,0.00020273,2]
[363478535,1748734246428,-430.0,0.00020273,2]
[363478537,1748734246437,-430.0,0.00020273,2]
[363478539,1748734246447,-266.24,0.00020273,2]
[363478541,1748734246457,-430.0,0.00020273,2]
[363478542,1748734246467,-1082.65,0.00020273,2]
[363478545,1748734246477,-430.0,0.00020273,2]
[363478547,1748734246487,-430.0,0.00020273,2]
[363478549,1748734246497,-1847.75,0.00020273,2]
[363478551,1748734246507,-430.0,0.00020273,2]
[363478553,1748734246517,-1758.73,0.00020273,2]
[363478555,1748734246527,-430.0,0.00020273,2]
[363478557,1748734246537,-1469.77,0.00020273,2]
[363478559,1748734246547,-843.86,0.00020273,2]
[363478561,1748734246556,-775.51,0.00020273,2]
[363478563,1748734246567,-430.0,0.00020273,2]
[363478565,1748734246576,-818.39,0.00020273,2]
[363478567,1748734246586,-769.5,0.00020273,2]
[363478568,1748734246597,-1603.8,0.00020273,2]
[363478569,1748734246607,-1679.41,0.00020273,2]
[363478570,1748734246617,-617.62,0.00020273,2]
[363478571,1748734246627,-454.8,0.00020273,2]
[363478572,1748734246636,-952.64,0.00020273,2]
[363478573,1748734246646,-430.0,0.00020273,2]
[363478574,1748734246656,-1359.86,0.00020273,2]
[363478575,1748734246665,-647.08,0.00020273,2]
[363478576,1748734246675,-207.4,0.00020528,2]
[363478577,1748734246684,-300.0,0.00020528,2]
[363478578,1748734246695,-300.0,0.00020528,2]
[363478579,1748734246706,-300.0,0.00020528,2]
[363478580,1748734246716,-300.0,0.00020528,2]
[363478581,1748734246726,-300.0,0.00020528,2]
[363478582,1748734246735,-300.0,0.00020528,2]
[363478584,1748734246744,-300.0,0.00020528,2]
[363478585,1748734246754,-300.0,0.00020528,2]
[363478587,1748734246764,-300.0,0.00020528,2]
[363478589,1748734246773,-300.0,0.00020528,2]
[363478591,1748734246784,-300.0,0.00020528,2]
[363478593,1748734246794,-300.0,0.00020528,2]
[363478595,1748734246804,-300.0,0.00020528,2]
[363478597,1748734246813,-300.0,0.00020528,2]
[363478599,1748734246822,-300.0,0.00020528,2]
[363478601,1748734246832,-186.592002,0.00020547,2]
[363478603,1748734246841,-186.592002,0.00020547,2]
[363478605,1748734246851,-257.22076,0.00020547,2]
[363478607,1748734246861,-430.0,0.00020547,2]
[363478609,1748734246870,-430.0,0.00020547,2]
[363478611,1748734246879,-430.0,0.00020547,2]
[363478612,1748734246889,-1082.65,0.00020547,2]
[363478613,1748734246899,-430.0,0.00020547,2]
[363478614,1748734246908,-430.0,0.00020547,2]
[363478615,1748734246917,-1847.75,0.00020547,2]
[363478616,1748734246930,-430.0,0.00020547,2]
[363478617,1748734246940,-1758.73,0.00020547,2]
[363478618,1748734246949,-430.0,0.00020547,2]
[363478619,1748734246958,-1469.77,0.00020547,2]
[363478620,1748734246968,-843.86,0.00020547,2]
[363478621,1748734246977,-775.51,0.00020547,2]
[363478622,1748734246987,-430.0,0.00020547,2]
[363478623,1748734246996,-818.39,0.00020547,2]
[363478624,1748734247005,-769.5,0.00020547,2]
[363478625,1748734247014,-1603.8,0.00020547,2]
[363478626,1748734247025,-1679.41,0.00020547,2]
[363478627,1748734247034,-617.62,0.00020547,2]
[363478628,1748734247043,-454.8,0.00020547,2]
[363478629,1748734247051,-952.64,0.00020547,2]
[363478630,1748734247060,-430.0,0.00020547,2]
[363478632,1748734247070,-1359.86,0.00020547,2]
[363478633,1748734247079,-647.08,0.00020547,2]
[363478635,1748734247089,-151.0,0.00020599,2]
[363478637,1748734247099,-186.592002,0.000206,2]
[363478639,1748734247109,-186.592002,0.000206,2]
[363478641,1748734247118,-660.93,0.000206,2]
[363478643,1748734247127,-6697.65,0.000206,2]
[363478644,1748734247137,-937.27698785,0.00020685,2]
[363478645,1748734247146,-430.0,0.00020821,2]
[363478646,1748734247156,-430.0,0.00020821,2]
[363478647,1748734247166,-430.0,0.00020821,2]
[363478648,1748734247177,-1082.65,0.00020821,2]
[363478649,1748734247187,-430.0,0.00020821,2]
[363478650,1748734247197,-196.26,0.00020821,2]
[363478651,1748734247207,-1847.75,0.00020821,2]
[363478652,1748734247216,-430.0,0.00020821,2]
[363478653,1748734247226,-1758.73,0.00020821,2]
[363478654,1748734247236,-430.0,0.00020821,2]
[363478655,1748734247246,-1469.77,0.00020821,2]
[363478656,1748734247255,-843.86,0.00020821,2]
[363478657,1748734247266,-775.51,0.00020821,2]
[363478658,1748734247276,-430.0,0.00020821,2]
[363478659,1748734247285,-818.39,0.00020821,2]
[363478660,1748734247295,-769.5,0.00020821,2]
[363478661,1748734247305,-1603.8,0.00020821,2]
[363478662,1748734247315,-1679.41,0.00020821,2]
[363478663,1748734247325,-617.62,0.00020821,2]
[363478664,1748734247334,-454.8,0.00020821,2]
[363478665,1748734247344,-952.64,0.00020821,2]
[363478667,1748734247354,-430.0,0.00020821,2]
[363478669,1748734247364,-1359.86,0.00020821,2]
[363478671,1748734247373,-647.08,0.00020821,2]
[363478683,1748734247495,-326247.58519,0.00020916,2]
[363478685,1748734247506,-16862.30949666,0.00020917,2]
[363478687,1748734247516,-500.0,0.0002106,2]
[363478690,1748734247526,-7381.75,0.00021076,2]
[363478691,1748734247536,-151.0,0.00021095,2]
[363478694,1748734247547,-186.592002,0.00021095,2]
[363478696,1748734247556,-186.592002,0.00021095,2]
[363478697,1748734247566,-494.04,0.00021095,2]
[363478698,1748734247576,-430.0,0.00021095,2]
[363478699,1748734247587,-430.0,0.00021095,2]
[363478700,1748734247598,-1082.65,0.00021095,2]
[363478701,1748734247608,-430.0,0.00021095,2]
[363478702,1748734247618,-1847.75,0.00021095,2]
[363478703,1748734247628,-430.0,0.00021095,2]
[363478704,1748734247639,-1758.73,0.00021095,2]
[363478705,1748734247650,-1469.77,0.00021095,2]
[363478706,1748734247661,-843.86,0.00021095,2]
[363478707,1748734247673,-775.51,0.00021095,2]
[363478708,1748734247683,-430.0,0.00021095,2]
[363478709,1748734247693,-818.39,0.00021095,2]
[363478710,1748734247705,-769.5,0.00021095,2]
[363478711,1748734247718,-1603.8,0.00021095,2]
[363478712,1748734247727,-1679.41,0.00021095,2]
[363478713,1748734247737,-617.62,0.00021095,2]
[363478714,1748734247747,-454.8,0.00021095,2]
[363478715,1748734247758,-952.64,0.00021095,2]
[363478716,1748734247767,-510.69,0.00021095,2]
[363478717,1748734247777,-1359.86,0.00021095,2]
[363478718,1748734247788,-647.08,0.00021095,2]
[363478719,1748734247797,-430.0,0.00021369,2]
[363478720,1748734247807,-430.0,0.00021369,2]
[363478721,1748734247817,-1082.65,0.00021369,2]
[363478722,1748734247826,-430.0,0.00021369,2]
[363478723,1748734247836,-1847.75,0.00021369,2]
[363478724,1748734247847,-430.0,0.00021369,2]
[363478725,1748734247857,-1758.73,0.00021369,2]
[363478726,1748734247867,-1469.77,0.00021369,2]
[363478727,1748734247877,-843.86,0.00021369,2]
[363478728,1748734247887,-775.51,0.00021369,2]
[363478729,1748734247897,-430.0,0.00021369,2]
[363478730,1748734247907,-818.39,0.00021369,2]
[363478731,1748734247917,-769.5,0.00021369,2]
[363478732,1748734247928,-1603.8,0.00021369,2]
[363478733,1748734247938,-1679.41,0.00021369,2]
[363478734,1748734247948,-617.62,0.00021369,2]
[363478735,1748734247957,-454.8,0.00021369,2]
[363478736,1748734247967,-952.64,0.00021369,2]
[363478737,1748734247977,-1359.86,0.00021369,2]
[363478738,1748734247987,-647.08,0.00021369,2]
[363478739,1748734247997,-306.0,0.0002137,2]
[363478740,1748734248007,-316.9162468,0.0002137,2]
[363478741,1748734248016,-153.0,0.0002137,2]
[363478742,1748734248027,-500.5084942,0.00021416,2]
[363478743,1748734248036,-436.0,0.00021452,2]
[363478744,1748734248046,-430.0,0.00021643,2]
[363478745,1748734248056,-430.0,0.00021643,2]
[363478746,1748734248066,-1082.65,0.00021643,2]
[363478747,1748734248076,-413.71882644,0.00021643,2]
[363478748,1748734248086,-1847.75,0.00021643,2]
[363478749,1748734248096,-430.0,0.00021643,2]
[363478750,1748734248106,-1758.73,0.00021643,2]
[363478751,1748734248116,-1469.77,0.00021643,2]
[363478752,1748734248127,-843.86,0.00021643,2]
[363478753,1748734248137,-775.51,0.00021643,2]
[363478754,1748734248146,-395.5,0.00021643,2]
[363478755,1748734248156,-818.39,0.00021643,2]
[363478756,1748734248165,-769.5,0.00021643,2]
[363478757,1748734248176,-1603.8,0.00021643,2]
[363478758,1748734248186,-1679.41,0.00021643,2]
[363478759,1748734248196,-617.62,0.00021643,2]
[363478760,1748734248206,-454.8,0.00021643,2]
[363478761,1748734248216,-952.64,0.00021643,2]
[363478762,1748734248226,-1359.86,0.00021643,2]
[363478763,1748734248236,-647.08,0.00021643,2]
[363478764,1748734248245,-2227.0,0.00021682,2]
[363478765,1748734248255,-708.0,0.00021682,2]
[363478766,1748734248265,-405.0,0.00021682,2]
[363478767,1748734248275,-405.0,0.00021682,2]
[363478768,1748734248285,-151.0,0.000217,2]
[363478769,1748734248295,-186.592002,0.000217,2]
[363478770,1748734248305,-186.592002,0.000217,2]
[363478771,1748734248315,-70898.06098452,0.000217,2]
[363478772,1748734248325,-344.65838421,0.00021772,2]
[363478773,1748734248548,-1268.76336486,0.00019107,2]
[363478774,1748734248560,-350.8164,0.00019107,2]
[363478775,1748734277521,178.29815294,6.8e-07,2]
[363478776,1748734372423,2000.0,0.00024658,120]
[363478777,1748734578138,178.29815294,6.8e-07,2]
[363478778,1748734737129,535.531044,0.00013699,2]
[363478800,1748734878740,212.98521701,6.8e-07,2]
[363478803,1748735179392,197.35414958,6.8e-07,2]
[363478804,1748735179488,197.35414958,6.8e-07,2]
[363478805,1748735232135,-183.8241309,0.00015691,2]
[363478806,1748735232159,-175.20048545,0.00016152,2]
[363478869,1748735432500,-1857.07627,0.00016152,2]
[363478873,1748735432532,-7046.00701035,0.00016152,2]
[363478875,1748735432541,-452.08119486,0.00016338,2]
[363478877,1748735432551,-300.0,0.00016436,2]
[363478879,1748735432560,-430.0,0.00016438,2]
[363478881,1748735432570,-430.0,0.00016438,2]
[363478883,1748735432580,-430.0,0.00016438,2]
[363478885,1748735432590,-315.43110203,0.00016438,2]
[363478887,1748735432599,-430.0,0.00016438,2]
[363478889,1748735432608,-430.0,0.00016438,2]
[363478891,1748735432621,-430.0,0.00016438,2]
[363478892,1748735432631,-430.0,0.00016438,2]
[363478895,1748735432642,-301.47,0.00016438,2]
[363478898,1748735432663,-430.0,0.00016438,2]
[363478900,1748735432674,-430.0,0.00016438,2]
[363478902,1748735432684,-430.0,0.00016438,2]
[363478904,1748735432694,-470.0,0.00016438,2]
[363478906,1748735432704,-430.0,0.00016438,2]
[363478908,1748735432715,-430.0,0.00016438,2]
[363478910,1748735432725,-430.0,0.00016438,2]
[363478912,1748735432735,-430.0,0.00016438,2]
[363478914,1748735432745,-430.0,0.00016438,2]
[363478916,1748735432754,-430.0,0.00016438,2]
[363478918,1748735432764,-430.0,0.00016438,2]
[363478920,1748735432774,-430.0,0.00016438,2]
[363478922,1748735432784,-462.18,0.00016438,2]
[363478924,1748735432794,-235.77367683,0.00016438,2]
[363479366,1748735438504,-194.22632317,0.00016438,2]
[363479367,1748735438514,-430.0,0.00016438,2]
[363479368,1748735438524,-140.06175298,0.00016438,2]
[363479369,1748735438536,-289.93824702,0.00016438,2]
[363479370,1748735438546,-430.0,0.00016438,2]
[363479371,1748735438558,-430.0,0.00016438,2]
[363479372,1748735438568,-430.0,0.00016438,2]
[363479373,1748735438579,-430.0,0.00016438,2]
[363479374,1748735438589,-430.0,0.00016438,2]
[363479375,1748735438599,-527.34,0.00016438,2]
[363479376,1748735438609,-430.0,0.00016438,2]
[363479377,1748735438618,-430.0,0.00016438,2]
[363479378,1748735438628,-191.93411007,0.00016438,2]
[363479379,1748735438715,-238.06588993,0.00016438,2]
[363479380,1748735438726,-430.0,0.00016438,2]
[363479381,1748735438736,-464.89,0.00016438,2]
[363479382,1748735438746,-569.27,0.00016438,2]
[363479383,1748735438755,-430.0,0.00016438,2]
[363479384,1748735438765,-550.15,0.00016438,2]
[363479385,1748735438774,-286.77628259,0.00016438,2]
[363479424,1748735440759,-143.22371741,0.00016438,2]
[363479426,1748735440769,-430.0,0.00016438,2]
[363479428,1748735440779,-512.97,0.00016438,2]
[363479430,1748735440789,-430.0,0.00016438,2]
[363479432,1748735440799,-430.0,0.00016438,2]
[363479434,1748735440808,-430.0,0.00016438,2]
[363479436,1748735440818,-430.0,0.00016438,2]
[363479438,1748735440828,-486.47,0.00016438,2]
[363479440,1748735440838,-489.83,0.00016438,2]
[363479442,1748735440848,-430.0,0.00016438,2]
[363479445,1748735440858,-430.0,0.00016438,2]
[363479447,1748735440868,-430.0,0.00016438,2]
[363479448,1748735440878,-430.0,0.00016438,2]
[363479450,1748735440888,-7965.54442081,0.00016438,2]
[363479453,1748735440898,-414.02601797,0.00016711,2]
[363479455,1748735440908,-7.44993482,0.00016711,2]
[363479457,1748735440924,-492.55006518,0.00016711,2]
[363479459,1748735440934,-368.61929437,0.00016711,2]
[363480038,1748735446805,-131.38070563,0.00016711,2]
[363480040,1748735446815,-500.0,0.00016711,2]
[363480042,1748735446827,-500.0,0.00016711,2]
[363480044,1748735446837,-331.90106663,0.00016711,2]
[363480234,1748735480150,294.89322903,6.8e-07,2]
[363480242,1748735604746,176.14,0.00013699,2]
[363480243,1748735605516,176.14,0.00013699,2]
[363480246,1748735728195,176.14036748,0.00013699,2]
[363480247,1748735780579,178.29815294,6.8e-07,2]
[363480248,1748735780679,178.29815294,6.8e-07,2]
[363480249,1748736014139,537.039742,0.00013699,2]
[363480251,1748736081177,205.16968329,6.8e-07,2]
[363480252,1748736081275,205.16968329,6.8e-07,2]
[363480254,1748736233313,176.14,0.00013699,2]
[363480257,1748736355732,176.14,0.00013699,2]
[363480260,1748736381739,197.35414959,6.8e-07,2]